fUSD/lending_fUSD_20251227
["ID","MTS","AMOUNT","RATE_DAILY","PERIOD"]
[399904112,1766839851969,-500.0,0.00036438,9]
[399904113,1766839851984,-500.0,0.00036438,9]
[399904114,1766839851998,-500.0,0.00036438,9]
[399904115,1766839852012,-500.0,0.00036438,9]
[399904116,1766839852025,-500.0,0.00036438,9]
[399904117,1766839852039,-500.0,0.00036438,9]
[399904118,1766839852051,-406.08017698,0.00036438,9]
[399904119,1766839852064,-500.0,0.00036438,9]
[399904120,1766839852077,-500.0,0.00036438,9]
[399904121,1766839852091,-500.0,0.00036438,9]
[399904122,1766839852104,-500.0,0.00036438,9]
[399904123,1766839852117,-500.0,0.00036438,9]
[399904124,1766839852130,-500.0,0.00036438,9]
[399904125,1766839852144,-500.0,0.00036438,9]
[399904126,1766839852156,-500.0,0.00036438,9]
[399904127,1766839852168,-500.0,0.00036438,9]
[399904128,1766839852182,-500.0,0.00036438,9]
[399904129,1766839852195,-500.0,0.00036438,9]
[399904130,1766839852208,-500.0,0.00036438,9]
[399904131,1766839852221,-500.0,0.00036438,9]
[399904132,1766839852234,-500.0,0.00036438,9]
[399904133,1766839852251,-500.0,0.00036438,9]
[399904134,1766839852264,-500.0,0.00036438,9]
[399904135,1766839852277,-386.27434287,0.00036438,9]
[399904136,1766839852290,-500.0,0.00036438,9]
[399904137,1766839852301,-500.0,0.00036438,9]
[399904138,1766839852313,-500.0,0.00036438,9]
[399904139,1766839852324,-368.3821692,0.00036438,9]
[399904140,1766839852339,-500.0,0.00036438,9]
[399904141,1766839852351,-250.79632274,0.00036438,9]
[399904142,1766839852364,-500.0,0.00036438,9]
[399904143,1766839852387,-505.43212318,0.00036438,9]
[399904144,1766839852401,-500.0,0.00036438,9]
[399904145,1766839852415,-500.0,0.00036438,9]
[399904146,1766839852430,-500.0,0.00036438,9]
[399904147,1766839852446,-500.0,0.00036438,9]
[399904148,1766839852461,-235.25845241,0.00036438,9]
[399904149,1766839852475,-500.0,0.00036438,9]
[399904150,1766839852489,-500.0,0.00036438,9]
[399904151,1766839852501,-500.0,0.00036438,9]
[399904152,1766839852512,-500.0,0.00036438,9]
[399904153,1766839852523,-500.0,0.00036438,9]
[399904154,1766839852534,-500.0,0.00036438,9]
[399904155,1766839852547,-500.0,0.00036438,9]
[399904156,1766839852557,-389.2272188,0.00036438,9]
[399904157,1766839852570,-500.0,0.00036438,9]
[399904158,1766839852586,-500.0,0.00036438,9]
[399904159,1766839852600,-165.725686,0.00036438,9]
[399904160,1766839852619,-500.0,0.00036438,9]
[399904161,1766839852631,-500.0,0.00036438,9]
[399904162,1766839852643,-500.0,0.00036438,9]
[399904163,1766839852656,-500.0,0.00036438,9]
[399904164,1766839852668,-500.0,0.00036438,9]
[399904165,1766839852683,-500.0,0.00036438,9]
[399904166,1766839852694,-500.0,0.00036438,9]
[399904167,1766839852706,-193.29474353,0.00036438,9]
[399904168,1766839852718,-713.69,0.00036438,9]
[399904169,1766839852731,-500.0,0.00036438,9]
[399904170,1766839852743,-500.0,0.00036438,9]
[399904171,1766839852758,-500.0,0.00036438,9]
[399904172,1766839852771,-500.0,0.00036438,9]
[399904173,1766839852785,-500.0,0.00036438,9]
[399904174,1766839852803,-418.8607674,0.00036438,9]
[399904175,1766839852815,-500.0,0.00036438,9]
[399904176,1766839852827,-500.0,0.00036438,9]
[399904177,1766839852839,-500.0,0.00036438,9]
[399904178,1766839852851,-500.0,0.00036438,9]
[399904179,1766839852862,-500.0,0.00036438,9]
[399904180,1766839852876,-500.0,0.00036438,9]
[399904181,1766839852887,-500.0,0.00036438,9]
[399904182,1766839852899,-500.0,0.00036438,9]
[399904183,1766839852911,-307.94787977,0.00036438,9]
[399904184,1766839852924,-500.0,0.00036438,9]
[399904185,1766839852936,-500.0,0.00036438,9]
[399904186,1766839852949,-500.0,0.00036438,9]
[399904187,1766839852961,-500.0,0.00036438,9]
[399904188,1766839852974,-398.18381667,0.00036438,9]
[399904189,1766839852986,-327.52454012,0.00036438,9]
[399904190,1766839852998,-500.0,0.00036438,9]
[399904191,1766839853011,-500.0,0.00036438,9]
[399904192,1766839853022,-500.0,0.00036438,9]
[399904193,1766839853035,-500.0,0.00036438,9]
[399904194,1766839853048,-500.0,0.00036438,9]
[399904195,1766839853060,-500.0,0.00036438,9]
[399904196,1766839853073,-500.0,0.00036438,9]
[399904197,1766839853085,-500.0,0.00036438,9]
[399904198,1766839853098,-500.0,0.00036438,9]
[399904199,1766839853110,-500.0,0.00036438,9]
[399904200,1766839853123,-500.0,0.00036438,9]
[399904201,1766839853136,-500.0,0.00036438,9]
[399904202,1766839853148,-500.0,0.00036438,9]
[399904203,1766839853160,-500.0,0.00036438,9]
[399904204,1766839853172,-500.0,0.00036438,9]
[399904205,1766839853184,-500.0,0.00036438,9]
[399904206,1766839853198,-500.0,0.00036438,9]
[399904207,1766839853211,-500.0,0.00036438,9]
[399904208,1766839853224,-500.0,0.00036438,9]
[399904209,1766839853237,-500.0,0.00036438,9]
[399904210,1766839853250,-500.0,0.00036438,9]
[399904211,1766839853263,-500.0,0.00036438,9]
[399904212,1766839853275,-500.0,0.00036438,9]
[399904213,1766839853287,-500.0,0.00036438,9]
[399904214,1766839853300,-500.0,0.00036438,9]
[399904215,1766839853312,-500.0,0.00036438,9]
[399904216,1766839853323,-448.03041264,0.00036438,9]
[399904217,1766839853335,-500.0,0.00036438,9]
[399904218,1766839853347,-500.0,0.00036438,9]
[399904219,1766839853358,-500.0,0.00036438,9]
[399904220,1766839853370,-234.51679421,0.00036438,9]
[399904221,1766839853382,-500.0,0.00036438,9]
[399904222,1766839853394,-500.0,0.00036438,9]
[399904223,1766839853407,-1178.57,0.00036438,14]
[399904224,1766839853423,-500.0,0.00036438,9]
[399904225,1766839853435,-500.0,0.00036438,9]
[399904226,1766839853447,-500.0,0.00036438,9]
[399904227,1766839853459,-500.0,0.00036438,9]
[399904228,1766839853471,-500.0,0.00036438,9]
[399904229,1766839853482,-488.8635376,0.00036438,9]
[399904230,1766839853493,-500.0,0.00036438,9]
[399904231,1766839853505,-500.0,0.00036438,9]
[399904232,1766839853516,-500.0,0.00036438,9]
[399904233,1766839853528,-447.8868148,0.00036438,9]
[399904234,1766839853540,-500.0,0.00036438,9]
[399904235,1766839853551,-500.0,0.00036438,9]
[399904236,1766839853563,-500.0,0.00036438,9]
[399904237,1766839853577,-205.72580191,0.00036438,9]
[399904238,1766839853589,-438.44,0.000367,14]
[399904239,1766839853600,-500.0,0.00036712,9]
[399904240,1766839853612,-500.0,0.00036712,9]
[399904241,1766839853624,-315.44247948,0.00036712,9]
[399904242,1766839853635,-500.0,0.00036712,9]
[399904243,1766839853648,-500.0,0.00036712,9]
[399904244,1766839853659,-500.0,0.00036712,9]
[399904245,1766839853671,-500.0,0.00036712,9]
[399904246,1766839853683,-500.0,0.00036712,9]
[399904247,1766839853694,-500.0,0.00036712,9]
[399904248,1766839853705,-591.32040558,0.00036712,9]
[399904249,1766839853717,-500.0,0.00036712,9]
[399904250,1766839853728,-500.0,0.00036712,9]
[399904251,1766839853740,-500.0,0.00036712,9]
[399904252,1766839853752,-500.0,0.00036712,9]
[399904253,1766839853763,-265.11072722,0.00036712,9]
[399904254,1766839853775,-500.0,0.00036712,9]
[399904255,1766839853786,-502.18692626,0.00036712,9]
[399904256,1766839853797,-614.48856314,0.00036712,9]
[399904257,1766839853808,-500.0,0.00036712,9]
[399904258,1766839853820,-500.0,0.00036712,9]
[399904259,1766839853831,-253.92226966,0.00036712,9]
[399904260,1766839853842,-500.0,0.00036712,9]
[399904261,1766839853854,-500.0,0.00036712,9]
[399904262,1766839853865,-489.69258909,0.00036712,9]
[399904263,1766839853876,-500.0,0.00036712,9]
[399904264,1766839853887,-500.0,0.00036712,9]
[399904265,1766839853898,-500.0,0.00036712,9]
[399904266,1766839853909,-500.0,0.00036712,9]
[399904267,1766839853920,-500.0,0.00036712,9]
[399904268,1766839853931,-550.24857861,0.00036712,9]
[399904269,1766839853942,-525.22933661,0.00036712,9]
[399904270,1766839853953,-500.0,0.00036712,9]
[399904271,1766839853965,-500.0,0.00036712,9]
[399904272,1766839853976,-500.0,0.00036712,9]
[399904273,1766839853986,-500.0,0.00036712,9]
[399904274,1766839853998,-500.0,0.00036712,9]
[399904275,1766839854008,-500.0,0.00036712,9]
[399904276,1766839854019,-500.0,0.00036712,9]
[399904277,1766839854030,-167.76220978,0.00036712,9]
[399904278,1766839854042,-500.0,0.00036712,9]
[399904279,1766839854053,-500.0,0.00036712,9]
[399904280,1766839854064,-500.0,0.00036712,9]
[399904281,1766839854075,-500.0,0.00036712,9]
[399904282,1766839854086,-500.0,0.00036712,9]
[399904283,1766839854097,-500.0,0.00036712,9]
[399904284,1766839854109,-500.0,0.00036712,9]
[399904285,1766839854120,-500.0,0.00036712,9]
[399904286,1766839854131,-500.0,0.00036712,9]
[399904287,1766839854142,-500.0,0.00036712,9]
[399904288,1766839854153,-196.21586319,0.00036712,9]
[399904289,1766839854164,-223.76199636,0.00036712,9]
[399904290,1766839854175,-288.32458014,0.00036712,9]
[399904291,1766839854186,-272.3534789,0.00036712,9]
[399904292,1766839854197,-500.0,0.00036712,9]
[399904293,1766839854208,-500.0,0.00036712,9]
[399904294,1766839854219,-400.0,0.00036712,9]
[399904295,1766839854231,-500.0,0.00036712,9]
[399904296,1766839854242,-500.0,0.00036712,9]
[399904297,1766839854254,-500.0,0.00036712,9]
[399904298,1766839854265,-500.0,0.00036712,9]
[399904299,1766839854276,-500.0,0.00036712,9]
[399904300,1766839854287,-500.0,0.00036712,9]
[399904301,1766839854298,-500.0,0.00036712,9]
[399904302,1766839854309,-317.56237569,0.00036712,9]
[399904303,1766839854320,-500.0,0.00036712,9]
[399904304,1766839854330,-494.18444403,0.00036712,9]
[399904305,1766839854343,-500.0,0.00036712,9]
[399904306,1766839854354,-400.0,0.00036712,9]
[399904307,1766839854365,-500.0,0.00036712,9]
[399904308,1766839854376,-500.0,0.00036712,9]
[399904309,1766839854387,-500.0,0.00036712,9]
[399904310,1766839854399,-500.0,0.00036712,9]
[399904311,1766839854411,-540.03743868,0.00036712,9]
[399904312,1766839854422,-500.0,0.00036712,9]
[399904313,1766839854433,-300.83822642,0.00036712,9]
[399904314,1766839854445,-400.0,0.00036712,9]
[399904315,1766839854456,-500.0,0.00036712,9]
[399904316,1766839854468,-500.0,0.00036712,9]
[399904317,1766839854480,-500.0,0.00036712,9]
[399904318,1766839854492,-400.0,0.00036712,9]
[399904319,1766839854504,-500.0,0.00036712,9]
[399904320,1766839854516,-400.0,0.00036712,9]
[399904321,1766839854527,-500.0,0.00036712,9]
[399904322,1766839854539,-500.0,0.00036712,9]
[399904323,1766839854551,-500.0,0.00036712,9]
[399904324,1766839854563,-500.0,0.00036712,9]
[399904325,1766839854575,-357.90567392,0.00036712,9]
[399904326,1766839854590,-500.0,0.00036712,9]
[399904327,1766839854602,-500.0,0.00036712,9]
[399904328,1766839854614,-500.0,0.00036712,9]
[399904329,1766839854628,-999.0,0.00036712,120]
[399904330,1766839854639,-500.0,0.00036712,9]
[399904331,1766839854650,-500.0,0.00036712,9]
[399904332,1766839854661,-500.0,0.00036712,9]
[399904333,1766839854674,-500.0,0.00036712,9]
[399904334,1766839854686,-500.0,0.00036712,9]
[399904335,1766839854698,-500.0,0.00036712,9]
[399904336,1766839854710,-500.0,0.00036712,9]
[399904337,1766839854722,-500.0,0.00036712,9]
[399904338,1766839854734,-500.0,0.00036712,9]
[399904339,1766839854747,-500.0,0.00036712,9]
[399904340,1766839854759,-500.0,0.00036712,9]
[399904341,1766839854771,-500.0,0.00036712,9]
[399904342,1766839854784,-500.0,0.00036712,9]
[399904343,1766839854796,-500.0,0.00036712,9]
[399904344,1766839854808,-500.0,0.00036712,9]
[399904345,1766839854819,-713.69,0.00036712,9]
[399904346,1766839854829,-135.40915104,0.00036712,9]
[399904347,1766839854853,-258.6914863,0.00036712,9]
[399904348,1766839854864,-105.89936266,0.00036712,9]
[399904349,1766839854874,-253.44678213,0.00036712,9]
[399904350,1766839854886,-246.55321787,0.00036712,9]
[399904351,1766839854896,-500.0,0.00036712,9]
[399904352,1766839854906,-500.0,0.00036712,9]
[399904353,1766839854916,-594.75956973,0.00036712,9]
[399904354,1766839854926,-500.0,0.00036712,9]
[399904355,1766839854937,-500.0,0.00036712,9]
[399904356,1766839854947,-500.0,0.00036712,9]
[399904357,1766839854957,-500.0,0.00036712,9]
[399904358,1766839855310,-500.0,0.00036712,9]
[399904359,1766839855338,-500.0,0.00036712,9]
[399904360,1766839855358,-500.0,0.00036712,9]
[399904361,1766839855370,-500.0,0.00036712,9]
[399904362,1766839855380,-85.68721243,0.00036712,9]
[399904363,1766839855393,-414.31278757,0.00036712,9]
[399904364,1766839855403,-500.0,0.00036712,9]
[399904365,1766839855413,-500.0,0.00036712,9]
[399904366,1766839855423,-500.0,0.00036712,9]
[399904367,1766839855433,-500.0,0.00036712,9]
[399904368,1766839855443,-500.0,0.00036712,9]
[399904369,1766839855453,-340.58817681,0.00036712,9]
[399904370,1766839855463,-500.0,0.00036712,9]
[399904371,1766839855473,-411.48384427,0.00036712,9]
[399904372,1766839855482,-500.0,0.00036712,9]
[399904373,1766839855492,-313.38028933,0.00036712,9]
[399904374,1766839855504,-186.61971067,0.00036712,9]
[399904375,1766839855514,-347.61261033,0.00036712,9]
[399904376,1766839855526,-152.38738967,0.00036712,9]
[399904377,1766839855535,-439.17886133,0.00036712,9]
[399904378,1766839855767,-12421.907782,0.00014136,2]
[399904379,1766839855778,-60.82113867,0.00036712,9]
[399904380,1766839855787,-500.0,0.00036712,9]
[399904381,1766839855797,-500.0,0.00036712,9]
[399904382,1766839855807,-500.0,0.00036712,9]
[399904383,1766839855816,-500.0,0.00036712,9]
[399904384,1766839855826,-500.0,0.00036712,9]
[399904385,1766839855836,-500.0,0.00036712,9]
[399904386,1766839855845,-500.0,0.00036712,9]
[399904387,1766839855856,-500.0,0.00036712,9]
[399904388,1766839855866,-500.0,0.00036712,9]
[399904389,1766839855876,-500.0,0.00036712,9]
[399904390,1766839855887,-500.0,0.00036712,9]
[399904391,1766839855896,-500.0,0.00036712,9]
[399904392,1766839855906,-500.0,0.00036712,9]
[399904393,1766839855916,-500.0,0.00036712,9]
[399904394,1766839855925,-627.85732836,0.00036712,9]
[399904395,1766839855936,-500.0,0.00036712,9]
[399904396,1766839855946,-500.0,0.00036712,9]
[399904397,1766839855956,-500.0,0.00036712,9]
[399904398,1766839855966,-500.0,0.00036712,9]
[399904399,1766839855976,-306.47763474,0.00036712,9]
[399904400,1766839855986,-500.0,0.00036712,9]
[399904401,1766839855997,-500.0,0.00036712,9]
[399904402,1766839856007,-1178.57,0.00036712,14]
[399904403,1766839856018,-500.0,0.00036712,9]
[399904404,1766839856028,-517.77029676,0.00036712,9]
[399904405,1766839856038,-209.04771004,0.00036712,9]
[399904406,1766839856048,-645.52262284,0.00036712,9]
[399904407,1766839856058,-500.0,0.00036712,9]
[399904408,1766839856069,-200.0,0.00036712,9]
[399904409,1766839856079,-500.0,0.00036712,9]
[399904410,1766839856089,-500.0,0.00036712,9]
[399904411,1766839856099,-500.0,0.00036712,9]
[399904412,1766839856109,-500.0,0.00036712,9]
[399904413,1766839856119,-500.0,0.00036712,9]
[399904414,1766839856128,-244.89309572,0.00036986,9]
[399904415,1766839856138,-232.14944779,0.00036986,9]
[399904416,1766839856148,-278.56609528,0.00036986,9]
[399904417,1766839856157,-263.52264204,0.00036986,9]
[399904418,1766839856167,-214.28728779,0.00036986,9]
[399904419,1766839856177,-336.25121206,0.00036986,9]
[399904420,1766839856187,-236.2547526,0.00036986,9]
[399904421,1766839856197,-239.43267358,0.00036986,9]
[399904422,1766839856207,-257.73552379,0.00036986,9]
[399904423,1766839856216,-213.03091427,0.00036986,9]
[399904424,1766839856226,-200.0,0.00036986,9]
[399904425,1766839856235,-500.0,0.00036986,9]
[399904426,1766839856245,-258.04281267,0.00036986,9]
[399904427,1766839856256,-180.11570787,0.00036986,9]
[399904428,1766839856266,-252.81838638,0.00036986,9]
[399904429,1766839856276,-270.58608463,0.00036986,9]
[399904430,1766839856286,-239.46944086,0.00036986,9]
[399904431,1766839856295,-200.0,0.00036986,9]
[399904432,1766839856305,-230.25219992,0.00036986,9]
[399904433,1766839856315,-260.85768592,0.00036986,9]
[399904434,1766839856325,-278.44963888,0.00036986,9]
[399904435,1766839856335,-266.62027359,0.00036986,9]
[399904436,1766839856347,-255.34763689,0.00036986,9]
[399904437,1766839856356,-200.0,0.00036986,9]
[399904438,1766839856366,-290.63197614,0.00036986,9]
[399904439,1766839856376,-329.44600339,0.00036986,9]
[399904440,1766839856392,-375.83553252,0.00036986,9]
[399904441,1766839856402,-302.50569968,0.00036986,9]
[399904442,1766839856413,-263.4376302,0.00036986,9]
[399904443,1766839856422,-269.69787104,0.00036986,9]
[399904444,1766839856432,-267.74358913,0.00036986,9]
[399904445,1766839856442,-217.79423623,0.00036986,9]
[399904446,1766839856452,-335.88112024,0.00036986,9]
[399904447,1766839856462,-500.0,0.00036986,9]
[399904448,1766839856473,-216.91004328,0.00036986,9]
[399904449,1766839856483,-220.94722152,0.00036986,9]
[399904450,1766839856493,-300.80302461,0.00036986,9]
[399904451,1766839856503,-217.14182693,0.00036986,9]
[399904452,1766839856512,-200.0,0.00036986,9]
[399904453,1766839856528,-245.13701934,0.00036986,9]
[399904454,1766839856540,-296.83451179,0.00036986,9]
[399904455,1766839856550,-279.36675833,0.00036986,9]
[399904456,1766839856559,-500.0,0.00036986,9]
[399904457,1766839856570,-200.0,0.00036986,9]
[399904458,1766839856582,-500.0,0.00036986,9]
[399904459,1766839856592,-260.11781573,0.00036986,9]
[399904460,1766839856602,-200.0,0.00036986,9]
[399904461,1766839856611,-260.88710076,0.00036986,9]
[399904462,1766839856623,-500.0,0.00036986,9]
[399904463,1766839856633,-200.0,0.00036986,9]
[399904464,1766839856648,-262.03646153,0.00036986,9]
[399904465,1766839856659,-500.0,0.00036986,9]
[399904466,1766839856669,-200.0,0.00036986,9]
[399904467,1766839856679,-175.37761041,0.00036986,9]
[399904468,1766839856689,-200.0,0.00036986,9]
[399904469,1766839856698,-500.0,0.00036986,9]
[399904470,1766839856707,-200.0,0.00036986,9]
[399904471,1766839856717,-280.64608852,0.00036986,9]
[399904472,1766839856727,-341.28,0.00036986,9]
[399904473,1766839856736,-200.0,0.00036986,9]
[399904474,1766839856745,-344.48052408,0.00036986,9]
[399904475,1766839856755,-500.0,0.00036986,9]
[399904476,1766839856764,-200.0,0.00036986,9]
[399904477,1766839856774,-231.73721904,0.00036986,9]
[399904478,1766839856784,-314.84607118,0.00036986,9]
[399904479,1766839856793,-228.17309978,0.00036986,9]
[399904480,1766839856803,-500.0,0.00036986,9]
[399904481,1766839856812,-248.30894771,0.00036986,9]
[399904482,1766839856822,-500.0,0.00036986,9]
[399904483,1766839856831,-500.0,0.00036986,9]
[399904484,1766839856842,-207.36386471,0.00036986,9]
[399904485,1766839856852,-200.0,0.00036986,9]
[399904486,1766839856862,-200.0,0.00036986,9]
[399904487,1766839856871,-500.0,0.00036986,9]
[399904488,1766839856881,-500.0,0.00036986,9]
[399904489,1766839856890,-266.46995744,0.00036986,9]
[399904490,1766839856900,-200.0,0.00036986,9]
[399904491,1766839856909,-262.89489093,0.00036986,9]
[399904492,1766839856918,-210.48035669,0.00036986,9]
[399904493,1766839856928,-322.42985991,0.00036986,9]
[399904494,1766839856937,-713.69,0.00036986,9]
[399904495,1766839856947,-349.1656353,0.00036986,9]
[399904496,1766839856957,-243.29260044,0.00036986,9]
[399904497,1766839856967,-200.0,0.00036986,9]
[399904498,1766839856977,-256.8115231,0.00036986,9]
[399904499,1766839856987,-500.0,0.00036986,9]
[399904500,1766839856997,-200.0,0.00036986,9]
[399904501,1766839857007,-200.0,0.00036986,9]
[399904502,1766839857016,-500.0,0.00036986,9]
[399904503,1766839857027,-241.76842668,0.00036986,9]
[399904504,1766839857037,-344.96543506,0.00036986,9]
[399904505,1766839857048,-500.0,0.00036986,9]
[399904506,1766839857058,-241.65788253,0.00036986,9]
[399904507,1766839857068,-500.0,0.00036986,9]
[399904508,1766839857078,-353.77337808,0.00036986,9]
[399904509,1766839857089,-200.0,0.00036986,9]
[399904510,1766839857100,-200.0,0.00036986,9]
[399904511,1766839857110,-500.0,0.00036986,9]
[399904512,1766839857122,-200.0,0.00036986,9]
[399904513,1766839857132,-500.0,0.00036986,9]
[399904514,1766839857141,-157.50452521,0.00036986,9]
[399904515,1766839857151,-328.49409365,0.00036986,9]
[399904516,1766839857167,-500.0,0.00036986,9]
[399904517,1766839857177,-253.69491426,0.00036986,9]
[399904518,1766839857187,-239.50721196,0.00036986,9]
[399904519,1766839857197,-338.49993062,0.00036986,9]
[399904520,1766839857207,-410.0,0.00036986,9]
[399904521,1766839857216,-200.0,0.00036986,9]
[399904522,1766839857226,-223.93787658,0.00036986,9]
[399904523,1766839857235,-265.25523112,0.00036986,9]
[399904524,1766839857246,-241.49080077,0.00036986,9]
[399904525,1766839857256,-200.0,0.00036986,9]
[399904526,1766839857266,-301.42848439,0.00036986,9]
[399904527,1766839857276,-215.39900643,0.00036986,9]
[399904528,1766839857287,-336.66098415,0.00036986,9]
[399904529,1766839857297,-200.0,0.00036986,9]
[399904530,1766839857306,-288.85715325,0.00036986,9]
[399904531,1766839857316,-500.0,0.00036986,9]
[399904532,1766839857327,-200.0,0.00036986,9]
[399904533,1766839857337,-200.0,0.00036986,9]
[399904534,1766839857347,-200.0,0.00036986,9]
[399904535,1766839857357,-200.0,0.00036986,9]
[399904536,1766839857367,-200.0,0.00036986,9]
[399904537,1766839857377,-200.0,0.00036986,9]
[399904538,1766839857387,-1178.57,0.00036986,14]
[399904539,1766839857397,-500.0,0.00036986,9]
[399904540,1766839857408,-500.0,0.00036986,9]
[399904541,1766839857419,-213.99627147,0.00036986,9]
[399904542,1766839857429,-177.25044264,0.00036986,9]
[399904543,1766839857439,-326.34424493,0.00036986,9]
[399904544,1766839857449,-238.37800459,0.00036986,9]
[399904545,1766839857459,-200.0,0.00037051,10]
[399904546,1766839857468,-500.0,0.0003726,9]
[399904547,1766839857478,-500.0,0.0003726,9]
[399904548,1766839857488,-154.07458392,0.0003726,9]
[399904549,1766839857498,-612.51338224,0.0003726,9]
[399904550,1766839857509,-500.0,0.0003726,9]
[399904551,1766839857519,-500.0,0.0003726,9]
[399904552,1766839857529,-500.0,0.0003726,9]
[399904553,1766839857539,-500.0,0.0003726,9]
[399904554,1766839857549,-465.36,0.0003726,9]
[399904555,1766839857560,-500.0,0.0003726,9]
[399904556,1766839857569,-500.0,0.0003726,9]
[399904557,1766839857581,-314.48,0.0003726,9]
[399904558,1766839857592,-500.0,0.0003726,9]
[399904559,1766839857601,-713.69,0.0003726,9]
[399904560,1766839857613,-500.0,0.0003726,9]
[399904561,1766839857625,-500.0,0.0003726,9]
[399904562,1766839857635,-500.0,0.0003726,9]
[399904563,1766839857645,-166.72,0.0003726,9]
[399904564,1766839857656,-500.0,0.0003726,9]
[399904565,1766839857666,-500.0,0.0003726,9]
[399904566,1766839857681,-500.0,0.0003726,9]
[399904567,1766839857691,-500.0,0.0003726,9]
[399904568,1766839857701,-1178.57,0.0003726,14]
[399904569,1766839857710,-500.0,0.0003726,9]
[399904570,1766839857720,-500.0,0.0003726,9]
[399904571,1766839857730,-154.6,0.00037272,5]
[399904572,1766839857739,-1659.56,0.00037327,2]
[399904573,1766839857750,-489.98134782,0.00037345,2]
[399904574,1766839857759,-500.0,0.00037356,14]
[399904575,1766839857768,-500.0,0.00037356,14]
[399904576,1766839857778,-500.0,0.00037356,14]
[399904577,1766839857787,-500.0,0.00037534,9]
[399904578,1766839857797,-500.0,0.00037534,9]
[399904579,1766839857807,-500.0,0.00037534,9]
[399904580,1766839857817,-500.0,0.00037534,9]
[399904581,1766839857828,-328.4,0.00037534,9]
[399904582,1766839857838,-500.0,0.00037534,9]
[399904583,1766839857847,-500.0,0.00037534,9]
[399904584,1766839857857,-542.8,0.00037534,9]
[399904585,1766839857867,-500.0,0.00037534,9]
[399904586,1766839857876,-713.69,0.00037534,9]
[399904587,1766839857887,-500.0,0.00037534,9]
[399904588,1766839857897,-500.0,0.00037534,9]
[399904589,1766839857906,-340.21768027,0.00037534,9]
[399904590,1766839857916,-418.17322274,0.00037534,9]
[399904591,1766839857925,-500.0,0.00037534,9]
[399904592,1766839857936,-500.0,0.00037534,9]
[399904593,1766839857946,-500.0,0.00037534,9]
[399904594,1766839858118,-1178.63238286,0.00037534,14]
[399904595,1766839858136,-224.96,0.00037534,9]
[399904596,1766839858146,-500.0,0.00037534,9]
[399904597,1766839858156,-500.0,0.00037808,9]
[399904598,1766839858167,-500.0,0.00037808,9]
[399904599,1766839858177,-190.32,0.00037808,9]
[399904600,1766839858187,-500.0,0.00037808,9]
[399904601,1766839858197,-500.0,0.00037808,9]
[399904602,1766839858207,-999.0,0.00037808,120]
[399904603,1766839858217,-500.0,0.00037808,9]
[399904604,1766839858227,-500.0,0.00037808,9]
[399904605,1766839858236,-713.69,0.00037808,9]
[399904606,1766839858246,-500.0,0.00037808,9]
[399904607,1766839858258,-500.0,0.00037808,9]
[399904608,1766839858269,-349.12,0.00037808,9]
[399904609,1766839858279,-500.0,0.00037808,9]
[399904610,1766839858289,-500.0,0.00037808,9]
[399904611,1766839858299,-584.88,0.00037808,9]